{"text_format":"3","workbook":"xlsx","n_sheets":2,"sheets":["Travel Sheet","Mileage"],"not_rendered":{"defined_names":2},"read":"whole","date_system":"1900"}

{"sheet":"Travel Sheet","index":0,"n_rows":94,"n_cols":20,"rows_kept":94,"merged":[[5,5,5,7],[5,10,5,12],[5,15,5,17],[36,0,36,1]]}
["NAME: ","Fill This In","HEADQUARTERS: ","Fill This in",null,"NAME: ",{"$f":"$B$1","v":"Fill This In"},"HEADQUARTERS: ",{"$f":"$D$1","v":"Fill This in"},null,"NAME: ",{"$f":"$B$1","v":"Fill This In"},"HEADQUARTERS: ","Fill this IN",null,"NAME: ",{"$f":"$B$1","v":"Fill This In"},"HEADQUARTERS: ",{"$f":"$D$1","v":"Fill This in"}]
[]
["PROGRAM: ","Fill This in",{"$nulls":3},"PROGRAM: ",{"$f":"B3","v":"Fill This in"},{"$nulls":3},"PROGRAM: ",{"$f":"B3","v":"Fill This in"},{"$nulls":3},"PROGRAM: ",{"$f":"$B$3","v":"Fill This in"}]
["MONTH:",null,"YEAR:",null,null,"MONTH:",{"$f":"$B$4","v":0},"YEAR:",{"$f":"$D$4","v":0},null,"MONTH:",{"$f":"$B$4","v":0},"YEAR:",{"$f":"$D$4","v":0},null,"MONTH:",{"$f":"$B$4","v":0},"YEAR:",{"$f":"$D$4","v":0}]
["DATE","FROM","TO","MILES TRAVELED","PURPOSE OF TRIP/GROUP OR STUDENTS INVOLVED","DATE","FROM","TO","MILES TRAVELED","PURPOSE OF TRIP/GROUP OR STUDENTS INVOLVED","DATE","FROM","TO","MILES TRAVELED","PURPOSE OF TRIP/GROUP OR STUDENTS INVOLVED","DATE","FROM","TO","MILES TRAVELED","PURPOSE OF TRIP/GROUP OR STUDENTS INVOLVED"]
[{"$nulls":3},{"$f":"IF(C6=\"\",\"\",VLOOKUP(B6,Mileage!$A$1:$U$21,MATCH(C6,Mileage!$A$1:$U$1,0),FALSE))","v":""},null,"FROM PAGE 1",null,null,{"$f":"D23","v":0},null,"FROM PAGE 2",null,null,{"$f":"I23","v":0},null,"FROM PAGE 3",null,null,{"$f":"N23","v":0}]
[{"$nulls":3},{"$f":"IF(C7=\"\",\"\",VLOOKUP(B7,Mileage!$A$1:$U$21,MATCH(C7,Mileage!$A$1:$U$1,0),FALSE))","v":""},{"$nulls":4},{"$f":"IF(H7=\"\",\"\",VLOOKUP(G7,Mileage!$A$1:$U$21,MATCH(H7,Mileage!$A$1:$U$1,0),FALSE))","v":""},{"$nulls":4},{"$f":"IF(M7=\"\",\"\",VLOOKUP(L7,Mileage!$A$1:$U$21,MATCH(M7,Mileage!$A$1:$U$1,0),FALSE))","v":""},{"$nulls":4},{"$f":"IF(R7=\"\",\"\",VLOOKUP(Q7,Mileage!$A$1:$U$21,MATCH(R7,Mileage!$A$1:$U$1,0),FALSE))","v":""}]
[{"$nulls":3},{"$f":"IF(C8=\"\",\"\",VLOOKUP(B8,Mileage!$A$1:$U$21,MATCH(C8,Mileage!$A$1:$U$1,0),FALSE))","v":""},{"$nulls":4},{"$f":"IF(H8=\"\",\"\",VLOOKUP(G8,Mileage!$A$1:$U$21,MATCH(H8,Mileage!$A$1:$U$1,0),FALSE))","v":""},{"$nulls":4},{"$f":"IF(M8=\"\",\"\",VLOOKUP(L8,Mileage!$A$1:$U$21,MATCH(M8,Mileage!$A$1:$U$1,0),FALSE))","v":""},{"$nulls":4},{"$f":"IF(R8=\"\",\"\",VLOOKUP(Q8,Mileage!$A$1:$U$21,MATCH(R8,Mileage!$A$1:$U$1,0),FALSE))","v":""}]
[{"$nulls":3},{"$f":"IF(C9=\"\",\"\",VLOOKUP(B9,Mileage!$A$1:$U$21,MATCH(C9,Mileage!$A$1:$U$1,0),FALSE))","v":""},{"$nulls":4},{"$f":"IF(H9=\"\",\"\",VLOOKUP(G9,Mileage!$A$1:$U$21,MATCH(H9,Mileage!$A$1:$U$1,0),FALSE))","v":""},{"$nulls":4},{"$f":"IF(M9=\"\",\"\",VLOOKUP(L9,Mileage!$A$1:$U$21,MATCH(M9,Mileage!$A$1:$U$1,0),FALSE))","v":""},{"$nulls":4},{"$f":"IF(R9=\"\",\"\",VLOOKUP(Q9,Mileage!$A$1:$U$21,MATCH(R9,Mileage!$A$1:$U$1,0),FALSE))","v":""}]
[{"$nulls":3},{"$f":"IF(C10=\"\",\"\",VLOOKUP(B10,Mileage!$A$1:$U$21,MATCH(C10,Mileage!$A$1:$U$1,0),FALSE))","v":""},{"$nulls":4},{"$f":"IF(H10=\"\",\"\",VLOOKUP(G10,Mileage!$A$1:$U$21,MATCH(H10,Mileage!$A$1:$U$1,0),FALSE))","v":""},{"$nulls":4},{"$f":"IF(M10=\"\",\"\",VLOOKUP(L10,Mileage!$A$1:$U$21,MATCH(M10,Mileage!$A$1:$U$1,0),FALSE))","v":""},{"$nulls":4},{"$f":"IF(R10=\"\",\"\",VLOOKUP(Q10,Mileage!$A$1:$U$21,MATCH(R10,Mileage!$A$1:$U$1,0),FALSE))","v":""}]
[{"$nulls":3},{"$f":"IF(C11=\"\",\"\",VLOOKUP(B11,Mileage!$A$1:$U$21,MATCH(C11,Mileage!$A$1:$U$1,0),FALSE))","v":""},{"$nulls":4},{"$f":"IF(H11=\"\",\"\",VLOOKUP(G11,Mileage!$A$1:$U$21,MATCH(H11,Mileage!$A$1:$U$1,0),FALSE))","v":""},{"$nulls":4},{"$f":"IF(M11=\"\",\"\",VLOOKUP(L11,Mileage!$A$1:$U$21,MATCH(M11,Mileage!$A$1:$U$1,0),FALSE))","v":""},{"$nulls":4},{"$f":"IF(R11=\"\",\"\",VLOOKUP(Q11,Mileage!$A$1:$U$21,MATCH(R11,Mileage!$A$1:$U$1,0),FALSE))","v":""}]
[{"$nulls":3},{"$f":"IF(C12=\"\",\"\",VLOOKUP(B12,Mileage!$A$1:$U$21,MATCH(C12,Mileage!$A$1:$U$1,0),FALSE))","v":""},{"$nulls":4},{"$f":"IF(H12=\"\",\"\",VLOOKUP(G12,Mileage!$A$1:$U$21,MATCH(H12,Mileage!$A$1:$U$1,0),FALSE))","v":""},{"$nulls":4},{"$f":"IF(M12=\"\",\"\",VLOOKUP(L12,Mileage!$A$1:$U$21,MATCH(M12,Mileage!$A$1:$U$1,0),FALSE))","v":""},{"$nulls":4},{"$f":"IF(R12=\"\",\"\",VLOOKUP(Q12,Mileage!$A$1:$U$21,MATCH(R12,Mileage!$A$1:$U$1,0),FALSE))","v":""}]
[{"$nulls":3},{"$f":"IF(C13=\"\",\"\",VLOOKUP(B13,Mileage!$A$1:$U$21,MATCH(C13,Mileage!$A$1:$U$1,0),FALSE))","v":""},{"$nulls":4},{"$f":"IF(H13=\"\",\"\",VLOOKUP(G13,Mileage!$A$1:$U$21,MATCH(H13,Mileage!$A$1:$U$1,0),FALSE))","v":""},{"$nulls":4},{"$f":"IF(M13=\"\",\"\",VLOOKUP(L13,Mileage!$A$1:$U$21,MATCH(M13,Mileage!$A$1:$U$1,0),FALSE))","v":""},{"$nulls":4},{"$f":"IF(R13=\"\",\"\",VLOOKUP(Q13,Mileage!$A$1:$U$21,MATCH(R13,Mileage!$A$1:$U$1,0),FALSE))","v":""}]
[{"$nulls":3},{"$f":"IF(C14=\"\",\"\",VLOOKUP(B14,Mileage!$A$1:$U$21,MATCH(C14,Mileage!$A$1:$U$1,0),FALSE))","v":""},{"$nulls":4},{"$f":"IF(H14=\"\",\"\",VLOOKUP(G14,Mileage!$A$1:$U$21,MATCH(H14,Mileage!$A$1:$U$1,0),FALSE))","v":""},{"$nulls":4},{"$f":"IF(M14=\"\",\"\",VLOOKUP(L14,Mileage!$A$1:$U$21,MATCH(M14,Mileage!$A$1:$U$1,0),FALSE))","v":""},{"$nulls":4},{"$f":"IF(R14=\"\",\"\",VLOOKUP(Q14,Mileage!$A$1:$U$21,MATCH(R14,Mileage!$A$1:$U$1,0),FALSE))","v":""}]
[{"$nulls":3},{"$f":"IF(C15=\"\",\"\",VLOOKUP(B15,Mileage!$A$1:$U$21,MATCH(C15,Mileage!$A$1:$U$1,0),FALSE))","v":""},{"$nulls":4},{"$f":"IF(H15=\"\",\"\",VLOOKUP(G15,Mileage!$A$1:$U$21,MATCH(H15,Mileage!$A$1:$U$1,0),FALSE))","v":""},{"$nulls":4},{"$f":"IF(M15=\"\",\"\",VLOOKUP(L15,Mileage!$A$1:$U$21,MATCH(M15,Mileage!$A$1:$U$1,0),FALSE))","v":""},{"$nulls":4},{"$f":"IF(R15=\"\",\"\",VLOOKUP(Q15,Mileage!$A$1:$U$21,MATCH(R15,Mileage!$A$1:$U$1,0),FALSE))","v":""}]
[{"$nulls":3},{"$f":"IF(C16=\"\",\"\",VLOOKUP(B16,Mileage!$A$1:$U$21,MATCH(C16,Mileage!$A$1:$U$1,0),FALSE))","v":""},{"$nulls":4},{"$f":"IF(H16=\"\",\"\",VLOOKUP(G16,Mileage!$A$1:$U$21,MATCH(H16,Mileage!$A$1:$U$1,0),FALSE))","v":""},{"$nulls":4},{"$f":"IF(M16=\"\",\"\",VLOOKUP(L16,Mileage!$A$1:$U$21,MATCH(M16,Mileage!$A$1:$U$1,0),FALSE))","v":""},{"$nulls":4},{"$f":"IF(R16=\"\",\"\",VLOOKUP(Q16,Mileage!$A$1:$U$21,MATCH(R16,Mileage!$A$1:$U$1,0),FALSE))","v":""}]
[{"$nulls":3},{"$f":"IF(C17=\"\",\"\",VLOOKUP(B17,Mileage!$A$1:$U$21,MATCH(C17,Mileage!$A$1:$U$1,0),FALSE))","v":""},{"$nulls":4},{"$f":"IF(H17=\"\",\"\",VLOOKUP(G17,Mileage!$A$1:$U$21,MATCH(H17,Mileage!$A$1:$U$1,0),FALSE))","v":""},{"$nulls":4},{"$f":"IF(M17=\"\",\"\",VLOOKUP(L17,Mileage!$A$1:$U$21,MATCH(M17,Mileage!$A$1:$U$1,0),FALSE))","v":""},{"$nulls":4},{"$f":"IF(R17=\"\",\"\",VLOOKUP(Q17,Mileage!$A$1:$U$21,MATCH(R17,Mileage!$A$1:$U$1,0),FALSE))","v":""}]
[{"$nulls":3},{"$f":"IF(C18=\"\",\"\",VLOOKUP(B18,Mileage!$A$1:$U$21,MATCH(C18,Mileage!$A$1:$U$1,0),FALSE))","v":""},{"$nulls":4},{"$f":"IF(H18=\"\",\"\",VLOOKUP(G18,Mileage!$A$1:$U$21,MATCH(H18,Mileage!$A$1:$U$1,0),FALSE))","v":""},{"$nulls":4},{"$f":"IF(M18=\"\",\"\",VLOOKUP(L18,Mileage!$A$1:$U$21,MATCH(M18,Mileage!$A$1:$U$1,0),FALSE))","v":""},{"$nulls":4},{"$f":"IF(R18=\"\",\"\",VLOOKUP(Q18,Mileage!$A$1:$U$21,MATCH(R18,Mileage!$A$1:$U$1,0),FALSE))","v":""}]
[{"$nulls":3},{"$f":"IF(C19=\"\",\"\",VLOOKUP(B19,Mileage!$A$1:$U$21,MATCH(C19,Mileage!$A$1:$U$1,0),FALSE))","v":""},{"$nulls":4},{"$f":"IF(H19=\"\",\"\",VLOOKUP(G19,Mileage!$A$1:$U$21,MATCH(H19,Mileage!$A$1:$U$1,0),FALSE))","v":""},{"$nulls":4},{"$f":"IF(M19=\"\",\"\",VLOOKUP(L19,Mileage!$A$1:$U$21,MATCH(M19,Mileage!$A$1:$U$1,0),FALSE))","v":""},{"$nulls":4},{"$f":"IF(R19=\"\",\"\",VLOOKUP(Q19,Mileage!$A$1:$U$21,MATCH(R19,Mileage!$A$1:$U$1,0),FALSE))","v":""}]
[{"$nulls":3},{"$f":"IF(C20=\"\",\"\",VLOOKUP(B20,Mileage!$A$1:$U$21,MATCH(C20,Mileage!$A$1:$U$1,0),FALSE))","v":""},{"$nulls":4},{"$f":"IF(H20=\"\",\"\",VLOOKUP(G20,Mileage!$A$1:$U$21,MATCH(H20,Mileage!$A$1:$U$1,0),FALSE))","v":""},{"$nulls":4},{"$f":"IF(M20=\"\",\"\",VLOOKUP(L20,Mileage!$A$1:$U$21,MATCH(M20,Mileage!$A$1:$U$1,0),FALSE))","v":""},{"$nulls":4},{"$f":"IF(R20=\"\",\"\",VLOOKUP(Q20,Mileage!$A$1:$U$21,MATCH(R20,Mileage!$A$1:$U$1,0),FALSE))","v":""}]
[{"$nulls":3},{"$f":"IF(C21=\"\",\"\",VLOOKUP(B21,Mileage!$A$1:$U$21,MATCH(C21,Mileage!$A$1:$U$1,0),FALSE))","v":""},{"$nulls":4},{"$f":"IF(H21=\"\",\"\",VLOOKUP(G21,Mileage!$A$1:$U$21,MATCH(H21,Mileage!$A$1:$U$1,0),FALSE))","v":""},{"$nulls":4},{"$f":"IF(M21=\"\",\"\",VLOOKUP(L21,Mileage!$A$1:$U$21,MATCH(M21,Mileage!$A$1:$U$1,0),FALSE))","v":""},{"$nulls":4},{"$f":"IF(R21=\"\",\"\",VLOOKUP(Q21,Mileage!$A$1:$U$21,MATCH(R21,Mileage!$A$1:$U$1,0),FALSE))","v":""}]
[{"$nulls":3},{"$f":"IF(C22=\"\",\"\",VLOOKUP(B22,Mileage!$A$1:$U$21,MATCH(C22,Mileage!$A$1:$U$1,0),FALSE))","v":""},{"$nulls":4},{"$f":"IF(H22=\"\",\"\",VLOOKUP(G22,Mileage!$A$1:$U$21,MATCH(H22,Mileage!$A$1:$U$1,0),FALSE))","v":""},{"$nulls":4},{"$f":"IF(M22=\"\",\"\",VLOOKUP(L22,Mileage!$A$1:$U$21,MATCH(M22,Mileage!$A$1:$U$1,0),FALSE))","v":""},{"$nulls":4},{"$f":"IF(R22=\"\",\"\",VLOOKUP(Q22,Mileage!$A$1:$U$21,MATCH(R22,Mileage!$A$1:$U$1,0),FALSE))","v":""}]
[null,"TOTAL MILES: Page 1",null,{"$f":"SUM(D6:D22)","v":0},null,null,"TOTAL MILES: Pages 1 & 2",null,{"$f":"SUM(I6:I22)","v":0},null,null,"TOTAL MILES: Pages 1, 2 & 3",null,{"$f":"SUM(N6:N22)","v":0},null,null,"TOTAL MILES: Pages 1, 2, 3 & 4",null,{"$f":"SUM(S6:S22)","v":0}]
["I hereby certify or affirm that the above expenses were actually incurred by me as necessary traveling expenses in the performance of my official duties; attendance at a conference or  convention was directly related to official duties",{"$nulls":4},"I hereby certify or affirm that the above expenses were actually incurred by me as necessary traveling expenses in the performance of my official duties; attendance at a conference or  convention was directly related to official duties",{"$nulls":4},"I hereby certify or affirm that the above expenses were actually incurred by me as necessary traveling expenses in the performance of my official duties; attendance at a conference or  convention was directly related to official duties",{"$nulls":4},"I hereby certify or affirm that the above expenses were actually incurred by me as necessary traveling expenses in the performance of my official duties; attendance at a conference or  convention was directly related to official duties"]
["of the agency; any meals or lodging included in a conference or convention registration fee have been deducted from this travel claim; and that this claim is true and correct in every material",{"$nulls":4},"of the agency; any meals or lodging included in a conference or convention registration fee have been deducted from this travel claim; and that this claim is true and correct in every material",{"$nulls":4},"of the agency; any meals or lodging included in a conference or convention registration fee have been deducted from this travel claim; and that this claim is true and correct in every material",{"$nulls":4},"of the agency; any meals or lodging included in a conference or convention registration fee have been deducted from this travel claim; and that this claim is true and correct in every material"]
["matter and same conforms in every respect with the requirement of section 112.061, Florida Statutes.",{"$nulls":4},"matter and same conforms in every respect with the requirement of section 112.061, Florida Statutes.",{"$nulls":4},"matter and same conforms in every respect with the requirement of section 112.061, Florida Statutes.",{"$nulls":4},"matter and same conforms in every respect with the requirement of section 112.061, Florida Statutes."]
["Payee Signature: _________________________________ ",null,null,"Date prepared: _______________________","Fill This In","Payee Signature: _________________________________ ",null,null,"Date prepared: _______________________",{"$f":"$E$27","v":"Fill This In"},"Payee Signature: _________________________________ ",null,null,"Date prepared: _______________________",{"$f":"$E$27","v":"Fill This In"},"Payee Signature: _________________________________ ",null,null,"Date prepared: _______________________",{"$f":"$E$27","v":"Fill This In"}]
["Title:","Fill this in",{"$nulls":3},"Title:",{"$f":"$B$28","v":"Fill this in"},{"$nulls":3},"Title:",{"$f":"$B$28","v":"Fill this in"},{"$nulls":3},"Title:",{"$f":"$B$28","v":"Fill this in"}]
["THIS FORM MUST BE SUBMITTED FOR PAYMENT BY the tenth of the month following each quarter.",{"$nulls":4},"THIS FORM MUST BE SUBMITTED FOR PAYMENT BY the tenth of the month following each quarter.",{"$nulls":4},"THIS FORM MUST BE SUBMITTED FOR PAYMENT BY the tenth of the month following each quarter.",{"$nulls":4},"THIS FORM MUST BE SUBMITTED FOR PAYMENT BY the tenth of the month following each quarter."]
["Pursuant to Section 112.061 (3)(a.), Florida Statutes, I herby certify or affirm that to the best of my knowledge the above travel was on official business of State of Florida and was performed for the purpose(s) stated above:",{"$nulls":4},"Pursuant to Section 112.061 (3)(a.), Florida Statutes, I herby certify or affirm that to the best of my knowledge the above travel was on official business of State of Florida and was performed for the purpose(s) stated above:",{"$nulls":4},"Pursuant to Section 112.061 (3)(a.), Florida Statutes, I herby certify or affirm that to the best of my knowledge the above travel was on official business of State of Florida and was performed for the purpose(s) stated above:",{"$nulls":4},"Pursuant to Section 112.061 (3)(a.), Florida Statutes, I herby certify or affirm that to the best of my knowledge the above travel was on official business of State of Florida and was performed for the purpose(s) stated above:"]
["Supervisor Signature: __________________________________________",{"$nulls":4},"Supervisor Signature: __________________________________________",{"$nulls":4},"Supervisor Signature: __________________________________________",{"$nulls":4},"Supervisor Signature: __________________________________________"]
[]
[]
[]
[null,{"$f":"S23*0.445","v":{"v":0,"d":"0.00"}},"Total"]
[]
["Use this as of 20230822"]
["Code","Name"]
["AEC","Adult Education Center"]
["BES","Bushnell Elementary School"]
["CO","County Office"]
["FAC","Facilities Office"]
["LPE","Lake Panasoffkee Elementary"]
["MIDDLETON","Villages Charter Middleton"]
["PO BU","Post Office Bushnell"]
["PO WE","Post Office Webster"]
["PO WW","Post Office Wildwood"]
["SPA","Sumter P.R.E.P. Academy"]
["SSH","South Sumter High  School"]
["SSM","South Sumter Middle"]
["TSP","Transportation Bushnell"]
["VCS","Vilages Charter School"]
["WES","Webster Elementary"]
["WIS","Wildwood Intermediate"]
["WMH","Wildwood Middle High School"]
["WWE","Wildwood Elementary"]
{"$rows_empty":16}
["AEC","JAN",2023]
["ASWE","FEB",2024]
["BES","MAR",2025]
["CO","APR",2026]
["EXC","MAY",2027]
["FAC","JUN",2028]
["LPE","JUL",2029]
["NSP","AUG",2030]
["POBU","SEP",2031]
["POWE","OCT",2032]
["POWI","NOV",2033]
["SPA","DEC",2034]
["SPC"]
["SSH"]
["SSM"]
["TSP"]
["VCS"]
["VCSM"]
["WES"]
["WIS"]
["WMH"]
["WWE"]

{"sheet":"Mileage","index":1,"n_rows":56,"n_cols":19,"rows_kept":56}
[null,"TSP","AEC","BES","CO","LPE","FAC","WWE","Middleton","SPA","SSH","SSM","WIS","WES","WMH","VCS","PO BU","PO WE","PO WW"]
["AEC",7.1,0,7.7,9.6,5.2,7.7,10.3,5.1,6.6,6.4,9.9,10.9,10.6,10.8,13.9]
["BES",0.8,7.7,0,2.5,8.4,0.2,17,13.2,1,1,5.9,17.4,7.6,17.4,22,1]
["CO",3.3,9.6,2.5,0,9.7,2.8,19.7,15.7,3.5,3.7,7.5,20.1,9.1,20.1,24.2,3.8]
["FAC",0.7,7.7,0.2,2.8,8.3,0,17,13.6,0.9,0.9,5.9,17.6,7.7,17.4,22.2,0.8]
["LPE",8.1,5.2,8.4,9.7,0,8.3,15.8,8.1,8,7.4,13.9,15.8,15.6,15.8,18.4]
["MIDDLETON",15.1,5.1,13.2,15.7,8.1,13.6,12.69,0,14.3,14,16.8,13.7,17.9,13.1,18.5]
["PO BU ",0.7,null,1,3.8,null,0.8,null,null,0.5,0.3]
["PO WE",{"$nulls":10},1.2,null,0.5]
["PO WW",{"$nulls":6},0.2,{"$nulls":6},1.1]
["SPA",0.2,6.6,1,3.5,8,0.9,16.6,17.1,0,0.8,6.6,17.3,8.4,17,21.5,0.8]
["WIS",17.4,10.9,17.4,20.1,15.8,17.6,0.6,0.5,17.3,16.7,19.4,0,19.9,0.8,5.6]
["SSH",0.7,6.4,1,3.7,7.4,0.9,16,16.5,0.8,0,6.5,16.7,8.2,16.4,21.3,0.3]
["SSM",6.5,9.9,5.9,7.5,13.9,5.9,19.3,19.7,6.6,6.5,0,19.4,1.6,19.8,24,null,1.2]
["TSP",0,7.1,0.8,3.3,8.1,0.7,16.7,17.2,0.2,0.7,6.5,17.4,8.3,17.1,21.8]
["VCS",21.8,13.9,22,24.2,18.4,22.2,5.7,5.8,21.5,21.3,24,2.6,24.2,5.9,0]
["WES",8.3,10.6,7.6,9.1,15.6,7.7,19.8,20.2,8.4,8.2,1.6,19.9,0,20.3,24.2,null,0.5]
["WMH",17.1,10.8,17.4,20.1,15.8,17.4,0.5,0.4,17,16.4,19.8,0.8,20.3,0,5.9,null,null,0.6]
["WWE",16.7,10.3,17,19.7,15.8,17,0,0.4,16.6,16,19.3,0.6,19.8,0.5,5.7,null,null,0.2]
{"$rows_empty":16}
["TSP",2]
["AEC",3]
["BES",4]
["CO",5]
["LPE",6]
["FAC",7]
["NSP",9]
["WWE",8]
["SAS",10]
["SSH",11]
["SSM",12]
["SPC",13]
["WES",14]
["WMH",15]
["VCS",16]
["EXC",17]
["ASBU",18]
["ASWE",19]
["POBU",20]
["POWE",21]
["POWI",22]